{"text_format":"1","workbook":"xlsx","n_sheets":3,"sheets":["ACTIVIDADES 2019 ACT","ACTIVIDADES 2019 BORRADOR","GUIAS POR MES (2)"],"not_rendered":{"charts":0,"images":0,"macros":1,"external_links":0,"defined_names":3,"comments":2,"pivot_tables":0},"unopened":[],"bounds":{"document_bytes":16777216,"sheet_cells":100000,"rows_first":2000,"rows_last":500,"rows_between":2000,"halvings":0,"cell_chars":16384,"cell_head_chars":4096},"cells_cut":0,"cells_raw":0,"read":"whole","date_system":"1900"}

{"sheet":"ACTIVIDADES 2019 ACT","index":0,"n_rows":70,"n_cols":17,"rows_kept":70,"cut":false,"hidden":false,"merged":[[1,0,1,12],[2,0,2,12]]}
[]
["INGRAFEN"]
["PLAN DE ACTIVIDADES 2019"]
[]
["ACTIVIDADES","ENE","FEB","MAR","ABR","MAY","JUN","JUL","AGO","SEP","OCT","NOV","DIC"]
["1. RENOVACION DE REGLAMENTO DE SEGURIDAD*"]
["Análisis de Riesgo de la Tarea basado en la Matriz de Riesgo Actualizada"]
["Elaborar el Procedimiento Seguro de Trabajo"]
["Actualización de Matriz de Riesgos"]
["Elaboración de Mapa de Riesgos"]
["Renovación del Reglamento de Higiene y Seguridad ",null,null,null,null,null,null,null,null,null,"Oct. 12"]
[null,null,null,null,null,null,null,null,null,null,null,null,null,null,null,null,"Inspecciones de Seguridad y Salud en el Trabajo. "]
["2. CAPACITACION SETEC"]
["Brigadas contra Incendios"]
["Uso correcto de Equipos de Protección Personal."]
["Inspecciones de Seguridad y Salud en el Trabajo. "]
["3. COMITÉ PARITARIO DE SEGURIDAD Y SALUD OCUPACIONAL"]
["3.1 Informe Resumen anual"]
["3.2 Sesiones Comité Paritario"]
["3.4 Renovación de miembros de Comité ",null,null,null,null,null,null,null,"Ago. 14"]
["3.6 Informes de Actividades mensuales "]
["4. CALCULO INDICES DE FRECUENCIA Y GRAVEDAD"]
["4.1 Informe  anual para subir a Riesgos del Trabajo"]
["4.2 Seguimiento a Indicadores reactivos"]
["4.3 Estadística de Accidentalidad y Morbilidad Laboral"]
["5. INDICADORES PROACTIVOS "]
["5.1 Informe  anual para subir a Riesgos del Trabajo"]
["5.2 Seguimiento ART.",null,"Uso seguro de maquinaria en el área de Manufactura ",null,null,null,null,"Transporte de materia prima y productos terminados desde y hacia la bodega",null,null,null,"Cambio de luminaria y trabajos de mantenimienro eléctrico en áreas de doble altura"]
["5.3 Seguimiento OPAS."]
["5.4 Seguimiento DPS."]
["5.5 Seguimiento DS."]
["5.6 Seguimiento IENTS."]
["5.7 Seguimiento ICAI."]
["5.8 Seguimiento IOSEA."]
["5.9 Actualización de los reportes de incidentes "]
["5.10 Actualización de pirámide de accidentalidad "]
["6. INSPECCIONES PLANEADAS DE SEGURIDAD"]
["Inspección"]
["Seguimiento"]
["Inspección de uso de EPP"]
["7. PROGRAMA DE DROGAS"]
["Capacitación sobre prevención y reducción del consumo de alcohol y/o drogas"]
["7.1 Alcohol"]
["7.2 Tabaco"]
["7.3 Drogas ilegales"]
["7.4 Señaletica"]
["7.5 Revision del Plan anual SSO."]
[]
["8. PROGRAMA PREVENCIÓN DE RIESGOS PSICOSOCIALES"]
["Realizar Pausas activas"]
["9. SIMULACROS"]
[" Defensa contra incendios/Primero a auxilios"]
["Evacuación "]
[]
["10. Presentación del Plan de Capacitación año 2019 al SUT"]
[]
["11. OTROS"]
["Mantenimiento periodico al piso y alfombras, área de oficina"]
["* ULTIMA APROBACIÓN DEL MINISTERIO DE TRABAJO: OCTUBRE 12- 2017"]
["Actividades programadas "]
["Actividades cumplidas"]
["Porcentaje mensual "]
[null,{"$f":"CountColor(B13:B53,$B$68)+CountColor(B13:B53,$B$67)","v":4},{"$f":"CountColor(C13:C58,$B$68)+CountColor(C13:C53,$B$67)","v":0},0,4,0,0,0,0,0,0,0,{"$f":"CountColor(M13:M58,$B$68)+CountColor(M13:M58,$B$67)","v":0}]
["PROGRAMADO",{"$f":"CountColor(B13:B53,$B$68)","v":4},0,0,4,0,0,0,0,0,0,0,0]
["CUMPLIDO",{"$f":"B64/B63","v":1},{"$f":"C64/C63","v":{"$error":"#DIV/0!"}},{"$f":"D64/D63","v":{"$error":"#DIV/0!"}},1,{"$f":"F64/F63","v":{"$error":"#DIV/0!"}},{"$f":"G64/G63","v":{"$error":"#DIV/0!"}},{"$error":"#DIV/0!"},{"$error":"#DIV/0!"},{"$error":"#DIV/0!"},{"$error":"#DIV/0!"},{"$error":"#DIV/0!"},{"$error":"#DIV/0!"}]
["REPROGRAMADO"]
["PROGRAMADO"]
["CUMPLIDO"]
["REPROGRAMADO"]
["PORCENTAJE DE CUMPLIMIENTO A DICIEMBRE 2016",{"$f":"#REF!/#REF!","v":{"$error":"#REF!"}}]

{"sheet":"ACTIVIDADES 2019 BORRADOR","index":1,"n_rows":82,"n_cols":13,"rows_kept":82,"cut":false,"hidden":false,"merged":[[1,0,1,12],[2,0,2,12]]}
[]
["INGRAFEN"]
["PLAN DE ACTIVIDADES 2019"]
[]
["ACTIVIDADES","ENE","FEB","MAR","ABR","MAY","JUN","JUL","AGO","SEP","OCT","NOV","DIC"]
["1. RENOVACION DE REGLAMENTO DE SEGURIDAD*"]
["Análisis de Riesgo de la Tarea basado en la Matriz de Riesgo Actualizada"]
["Elaborar el Procedimiento Seguro de Trabajo"]
["Actualización de Matriz de Riesgos"]
["Elaboración de Mapa de Riesgos"]
["Renovación del Reglamento de Higiene y Seguridad ",null,null,null,null,null,null,null,null,null,"Oct. 12"]
[]
["2. CAPACITACION SETEC"]
["Indicadores del Sistema de Gestión de la Seguridad y Salud en él Trabajo."]
["Inspecciones de Seguridad y Salud en el Trabajo. "]
["Uso correcto de Equipos de Protección Personal."]
["Fundamentos de la Seguridad y Salud en el Trabajo"]
["Brigadas de Evacuación y Rescate"]
["Brigadas de Primeros Auxilios"]
["Brigadas contra Incendios"]
["Capacitación sobre manipulación y almacenamiento de materiales"]
["Capacitar al personal en manejo a la defensiva."]
["Realizar capacitación en Riesgos Ergonómicos. "]
["Prevención de Riesgos Laborales"]
["3. COMITÉ PARITARIO DE SEGURIDAD Y SALUD OCUPACIONAL"]
["3.1 Informe Resumen anual"]
["3.2 Sesiones Comité Paritario"]
["3.4 Renovación de miembros de Comité ",null,null,null,null,null,null,null,"Ago. 14"]
["3.6 Informes de Actividades mensuales "]
["4. CALCULO INDICES DE FRECUENCIA Y GRAVEDAD"]
["4.1 Informe  anual para subir a Riesgos del Trabajo"]
["4.2 Seguimiento a Indicadores reactivos"]
["4.3 Estadística de Accidentalidad y Morbilidad Laboral"]
["5. INDICADORES PROACTIVOS "]
["5.1 Informe  anual para subir a Riesgos del Trabajo"]
["5.2 Seguimiento ART."]
["5.3 Seguimiento OPAS."]
["5.4 Seguimiento DPS."]
["5.5 Seguimiento DS."]
["5.6 Seguimiento IENTS."]
["5.7 Seguimiento ICAI."]
["5.8 Seguimiento IOSEA."]
["5.9 Actualización de los reportes de incidentes "]
["5.10 Actualización de pirámide de accidentalidad "]
["6. INSPECCIONES PLANEADAS DE SEGURIDAD"]
["Inspección"]
["Seguimiento"]
["Inspección de uso de EPP"]
["7. PROGRAMA DE DROGAS"]
["Capacitación sobre prevención y reducción del consumo de alcohol y/o drogas"]
["7.1 Alcohol"]
["7.2 Tabaco"]
["7.3 Drogas ilegales"]
["7.4 Señaletica"]
["7.5 Revision del Plan anual SSO."]
[]
["8. PROGRAMA PREVENCIÓN DE RIESGOS PSICOSOCIALES"]
["Realizar Pausas activas"]
["9. SIMULACROS"]
[" Defensa contra incendios/Primero a auxilios"]
["Evacuación "]
[]
["9.SUT"]
["Presentación del Plan de Capacitación año 2019"]
["Plan Integral de Prevención de Riesgos"]
["Programa de Prevención de Riesgos Psicosocial"]
["programa de Prevención al uso y consumo de Drogas"]
[]
["10. OTROS"]
["Mantenimiento periodico al piso y alfombras, área de oficina"]
["* ULTIMA APROBACIÓN DEL MINISTERIO DE TRABAJO: OCTUBRE 12- 2017"]
["Actividades programadas "]
["Actividades cumplidas"]
["Porcentaje mensual "]
[null,{"$f":"CountColor(B13:B61,$B$80)+CountColor(B13:B61,$B$79)","v":3},{"$f":"CountColor(C13:C70,$B$80)+CountColor(C13:C61,$B$79)","v":0},0,0,0,0,0,0,0,0,0,{"$f":"CountColor(M13:M70,$B$80)+CountColor(M13:M70,$B$79)","v":0}]
["PROGRAMADO",{"$f":"CountColor(B13:B61,$B$80)","v":3},0,0,0,0,0,0,0,0,0,0,0]
["CUMPLIDO",{"$f":"B76/B75","v":1},{"$f":"C76/C75","v":{"$error":"#DIV/0!"}},{"$f":"D76/D75","v":{"$error":"#DIV/0!"}},{"$error":"#DIV/0!"},{"$f":"F76/F75","v":{"$error":"#DIV/0!"}},{"$f":"G76/G75","v":{"$error":"#DIV/0!"}},{"$error":"#DIV/0!"},{"$error":"#DIV/0!"},{"$error":"#DIV/0!"},{"$error":"#DIV/0!"},{"$error":"#DIV/0!"},{"$error":"#DIV/0!"}]
["REPROGRAMADO"]
["PROGRAMADO"]
["CUMPLIDO"]
["REPROGRAMADO"]
["PORCENTAJE DE CUMPLIMIENTO A DICIEMBRE 2016",{"$f":"#REF!/#REF!","v":{"$error":"#REF!"}}]

{"sheet":"GUIAS POR MES (2)","index":2,"n_rows":75,"n_cols":13,"rows_kept":75,"cut":false,"hidden":false,"merged":[[1,0,1,12],[2,0,2,12]]}
[]
["INGRAFEN"]
["PLAN DE ACTIVIDADES 2019"]
[]
["ACTIVIDADES","ENE","FEB","MAR","ABR","MAY","JUN","JUL","AGO","SEP","OCT","NOV","DIC"]
["1. RENOVACION DE REGLAMENTO DE SEGURIDAD*"]
["Análisis de Riesgo de la Tarea basado en la Matriz de Riesgo Actualizada"]
["Elaborar el Procedimiento Seguro de Trabajo"]
["Actualización de Matriz de Riesgos"]
["Elaboración de Mapa de Riesgos"]
["Renovación del Reglamento de Higiene y Seguridad ",null,null,null,null,null,null,null,null,null,"Oct. 12"]
[]
["2. CAPACITACION SETEC"]
["Indicadores del Sistema de Gestión de la Seguridad y Salud en él Trabajo."]
["Inspecciones de Seguridad y Salud en el Trabajo. "]
["Uso correcto de Equipos de Protección Personal."]
["Fundamentos de la Seguridad y Salud en el Trabajo"]
["Brigadas de Evacuación y Rescate"]
["Brigadas de Primeros Auxilios"]
["Brigadas contra Incendios"]
["Capacitación sobre manipulación y almacenamiento de materiales"]
["Capacitar al personal en manejo a la defensiva."]
["Realizar capacitación en Riesgos Ergonómicos. "]
["Prevención de Riesgos Laborales"]
["3. COMITÉ PARITARIO DE SEGURIDAD Y SALUD OCUPACIONAL"]
["3.1 Informe Resumen anual"]
["3.2 Sesiones Comité Paritario",null,"A",null,null,"B",null,null,"C"]
["3.3 Sesiones del Subcomité Quito"]
["3.4 Renovación de miembros de Comité ",null,null,null,null,null,null,null,null,null,"Oct. 18"]
["3.5 Renovación del Subcomité Quito",null,null,null,null,null,null,null,null,null,"oct. 18"]
["3.6 Informes de Actividades mensuales "]
["4. CALCULO INDICES DE FRECUENCIA Y GRAVEDAD"]
[]
["3.1 Seguimiento a Indicadores reactivos"]
["3.2 Estadística de Accidentalidad y Morbilidad Laboral"]
["5. INDICADORES PROACTIVOS "]
[]
["5.1 Seguimiento ART."]
["5.2 Seguimiento OPAS."]
["5.3 Seguimiento DPS."]
["5.4 Seguimiento DS."]
["5.5 Seguimiento IENTS."]
["5.6 Seguimiento ICAI."]
["5.7 Seguimiento IOSEA."]
["Actualización de los reportes de incidentes "]
["Actualización de pirámide de accidentalidad "]
["6. INSPECCIONES PLANEADAS DE SEGURIDAD"]
["Inspección"]
["Seguimiento"]
["7. PROGRAMA DE DROGAS"]
["Capacitación sobre prevención y reducción del consumo de alcohol y/o drogas"]
["7.1 Alcohol"]
["7.2 Tabaco"]
["7.3 Drogas ilegales"]
["7.4 Señaletica"]
["7.5 Revision del Plan anual SSO."]
[]
["8. SIMULACROS"]
[" Defensa contra incendios/Primero a auxilios"]
["Evacuación y"]
[]
["8. Presentación del Plan de Capacitación año 2019 al SUT"]
[]
["* ULTIMA APROBACIÓN DEL MINISTERIO DE TRABAJO: NOVIEMBRE 7- 2017"]
["Actividades programadas "]
["Actividades cumplidas"]
["Porcentaje mensual "]
[null,{"$f":"CountColor(B13:B60,$B$73)+CountColor(B13:B60,$B$72)","v":0},{"$f":"CountColor(C13:C63,$B$73)+CountColor(C13:C60,$B$72)","v":0},0,0,0,0,0,0,0,0,0,{"$f":"CountColor(M13:M63,$B$73)+CountColor(M13:M63,$B$72)","v":0}]
["PROGRAMADO",{"$f":"CountColor(B13:B60,$B$73)","v":0},0,0,0,0,0,0,0,0,0,0,0]
["CUMPLIDO",{"$f":"B69/B68","v":{"$error":"#DIV/0!"}},{"$f":"C69/C68","v":{"$error":"#DIV/0!"}},{"$f":"D69/D68","v":{"$error":"#DIV/0!"}},{"$error":"#DIV/0!"},{"$f":"F69/F68","v":{"$error":"#DIV/0!"}},{"$f":"G69/G68","v":{"$error":"#DIV/0!"}},{"$error":"#DIV/0!"},{"$error":"#DIV/0!"},{"$error":"#DIV/0!"},{"$error":"#DIV/0!"},{"$error":"#DIV/0!"},{"$error":"#DIV/0!"}]
["REPROGRAMADO"]
["PROGRAMADO"]
["CUMPLIDO"]
["REPROGRAMADO"]
["PORCENTAJE DE CUMPLIMIENTO A DICIEMBRE 2016",{"$f":"#REF!/#REF!","v":{"$error":"#REF!"}}]